[Event "Festival Groningen-A 2024"]
[Site "Groningen"]
[Date "2024.12.30"]
[Round "9.24"]
[White "Mohammed, Dilshad"]
[Black "Van Roon, Sjoerd"]
[Result "0-1"]
[ECO "A09"]
[WhiteElo "2078"]
[BlackElo "2285"]
[Annotator "RC"]
[PlyCount "106"]
[EventDate "2024.12.21"]
[EventType "swiss"]
[EventCountry "NED"]
[SourceTitle "playchess.com"]
[Source "ChessBase"]
[SourceQuality "1"]
[TimeControl "40/5400+30:1800+30"]

1. Nf3 {[%emt 0:00:05]} d5 {[%emt 0:00:15]} 2. c4 {[%emt 0:00:04]} d4 {[%emt 0:00:12]} 3. e3 {[%emt 0:00:09]} Nc6 {[%emt 0:00:13]} 4. exd4 {[%emt 0:00:40]} Nxd4 {[%emt 1:31:50]} 5. Nxd4 {[%emt 0:00:12]} Qxd4 {[%emt 0:00:00]} 6. d3 {[%emt 0:00:32]} Nh6 {[%emt 0:00:00]} 7. h3 {[%emt 0:02:35]} e5 {[%emt 0:00:00]} 8. Nc3 {[%emt 0:00:09]} c6 {[%emt 0:00:00]} 9. Be3 {[%emt 0:00:32]} Qd8 {[%emt 0:00:00]} 10. Bxh6 {[%emt 0:01:52]} gxh6 {[%emt 0:00:00]} 11. Qh5 {[%emt 0:00:13]} Qg5 {[%emt 0:00:00]} 12. Qxg5 {[%emt 0:05:11]} hxg5 {[%emt 0:00:00]} 13. O-O-O {[%emt 0:00:05]} Be6 {[%emt 0:00:00]} 14. d4 {[%emt 0:10:13]} exd4 {[%emt 0:00:00]} 15. Rxd4 {[%emt 0:00:05]} Bg7 {[%emt 0:00:00]} 16. Rd3 {[%emt 0:00:10]} Rd8 {[%emt 0:00:00]} 17. Rxd8+ {[%emt 0:00:41]} Kxd8 {[%emt 0:00:00]} 18. Ne4 {[%emt 0:00:14]} h6 {[%emt 0:00:00]} 19. Nc5 {[%emt 0:01:14]} Bc8 {[%emt 0:00:00]} 20. Be2 {[%emt 0:01:24]} Kc7 {[%emt 0:00:00]} 21. Bh5 {[%emt 0:01:39]} b6 {[%emt 0:00:00]} 22. Nb3 {[%emt 0:02:00]} Be6 {[%emt 0:00:00]} 23. Re1 {[%emt 0:00:03]} Rd8 {[%emt 0:00:00]} 24. c5 {[%emt 0:01:18]} Bf6 {[%emt 0:00:00]} 25. cxb6+ {[%emt 0:01:26]} axb6 {[%emt 0:00:00]} 26. Bd1 {[%emt 0:02:58]} c5 {[%emt 0:00:00]} 27. Re2 {[%emt 0:02:17]} Bc4 {[%emt 0:00:00]} 28. Rd2 {[%emt 0:02:41]} Re8 {[%emt 0:00:00]} 29. Bg4 {[%emt 0:00:24]} Bb5 {[%emt 0:00:00]} 30. Na1 {[%emt 0:07:54]} Re1+ {[%emt 0:00:00]} 31. Rd1 {[%emt 0:00:22]} Rxd1+ {[%emt 0:00:00]} 32. Bxd1 {[%emt 0:00:17]} Bd4 {[%emt 0:00:00]} 33. a4 {[%emt 0:06:01]} Bf1 {[%emt 0:00:00]} 34. Bf3 {[%emt 0:00:32]} Kd6 {[%emt 0:00:00]} 35. Nb3 {[%emt 0:00:37]} Bxf2 {[%emt 0:00:00]} 36. a5 {[%emt 0:00:07]} bxa5 {[%emt 0:00:00]} 37. Kc2 {[%emt 0:00:56]} Ke5 {[%emt 0:00:00]} 38. Bc6 {[%emt 0:01:29]} c4 {[%emt 0:00:00]} 39. Nxa5 {[%emt 0:00:53]} Bd3+ {[%emt 0:00:00]} 40. Kd2 {[%emt 0:01:42]} Bb6 {[%emt 0:00:00]} 41. Nb7 {[%emt 0:33:41]} f5 {[%emt 0:13:56]} 42. b3 {[%emt 0:00:40]} Bf1 {[%emt 0:02:11]} 43. bxc4 {[%emt 0:00:43]} Bxc4 {[%emt 0:00:10]} 44. Kc3 {[%emt 0:03:14]} Bd5 {[%emt 0:00:06]} 45. Bxd5 {[%emt 0:00:05]} Kxd5 {[%emt 0:00:03]} 46. Kd3 {[%emt 0:00:04]} Kc6 {[%emt 0:00:05]} 47. Kc4 {[%emt 0:00:02]} Kxb7 {[%emt 0:00:05]} 48. Kd5 {[%emt 0:00:02]} f4 {[%emt 0:00:31]} 49. Ke5 {[%emt 0:00:07]} Bc5 {[%emt 0:00:08]} 50. Kf5 {[%emt 0:03:03]} Kc6 {[%emt 0:00:06]} 51. Kg6 {[%emt 0:00:25]} Bf8 {[%emt 0:00:09]} 52. Kh5 {[%emt 0:02:14]} Kd5 {[%emt 0:00:06]} 53. h4 {[%emt 0:00:58]} Be7 {[%emt 0:00:04]} 0-1

[Event "Festival Groningen-A 2024"]
[Site "Groningen"]
[Date "2024.12.30"]
[Round "9.25"]
[White "Avetisyan, Ani"]
[Black "Spit, Vincent"]
[Result "1/2-1/2"]
[ECO "D85"]
[WhiteElo "2059"]
[BlackElo "2113"]
[Annotator "RC"]
[PlyCount "73"]
[EventDate "2024.12.21"]
[EventType "swiss"]
[EventCountry "NED"]
[SourceTitle "playchess.com"]
[Source "ChessBase"]
[SourceQuality "1"]
[TimeControl "40/5400+30:1800+30"]

1. d4 {[%emt 0:00:02]} Nf6 {[%emt 0:00:08]} 2. c4 {[%emt 0:00:04]} g6 {[%emt 0:00:08]} 3. Nc3 {[%emt 0:00:06]} d5 {[%emt 0:00:07]} 4. cxd5 {[%emt 0:00:05]} Nxd5 {[%emt 0:00:07]} 5. e4 {[%emt 0:00:06]} Nxc3 {[%emt 0:00:07]} 6. bxc3 {[%emt 0:00:02]} Bg7 {[%emt 0:00:23]} 7. Nf3 {[%emt 0:00:12]} c5 {[%emt 0:00:38]} 8. Rb1 {[%emt 0:00:19]} Nc6 {[%emt 0:02:55]} 9. d5 {[%emt 0:22:55]} Ne5 {[%emt 0:01:11]} 10. Bb5+ {[%emt 0:02:10]} Bd7 {[%emt 0:02:19]} 11. O-O {[%emt 0:02:32]} Nxf3+ {[%emt 0:03:36]} 12. Qxf3 {[%emt 0:00:28]} O-O {[%emt 0:00:53]} 13. c4 {[%emt 0:06:16]} a6 {[%emt 0:04:05]} 14. Bxd7 {[%emt 0:01:46]} Qxd7 {[%emt 0:00:07]} 15. Qb3 {[%emt 0:03:34]} Qg4 {[%emt 0:09:26]} 16. f3 {[%emt 0:02:05]} Bd4+ {[%emt 0:01:52]} 17. Be3 {[%emt 0:03:24]} Bxe3+ {[%emt 0:05:19]} 18. Qxe3 {[%emt 0:00:04]} Qc8 {[%emt 0:02:06]} 19. Rb6 {[%emt 0:04:13]} Qc7 {[%emt 0:03:06]} 20. Rfb1 {[%emt 0:00:27]} Ra7 {[%emt 0:04:35]} 21. e5 {[%emt 0:02:33]} Rc8 {[%emt 0:05:28]} 22. d6 {[%emt 0:06:04]} Qd7 {[%emt 0:07:03]} 23. Qe4 {[%emt 0:08:19]} exd6 {[%emt 0:01:49]} 24. exd6 {[%emt 0:01:46]} Rd8 {[%emt 0:10:58]} 25. Qd5 {[%emt 0:10:37]} Qe6 {[%emt 0:04:16]} 26. Qd3 {[%emt 0:07:05]} Rd7 {[%emt 0:04:41]} 27. Kf2 {[%emt 0:02:24]} Ra8 {[%emt 0:01:58]} 28. Re1 {[%emt 0:00:34]} Qf6 {[%emt 0:00:33]} 29. Qd5 {[%emt 0:03:50]} Qh4+ {[%emt 0:03:16]} 30. Kf1 {[%emt 0:00:27]} Rad8 {[%emt 0:03:44]} 31. h3 {[%emt 0:02:36]} Qf6 {[%emt 0:03:27]} 32. Rd1 {[%emt 0:00:50]} Qc3 {[%emt 0:04:22]} 33. Rb3 {[%emt 0:03:55]} Qc2 {[%emt 0:00:47]} 34. Rd2 {[%emt 0:01:23]} Qc1+ {[%emt 0:00:25]} 35. Rd1 {[%emt 0:00:12]} Qc2 {[%emt 0:01:01]} 36. Rd2 {[%emt 0:03:04]} Qc1+ {[%emt 0:00:35]} 37. Rd1 {[%emt 0:01:14]} 1/2-1/2

[Event "Festival Groningen-A 2024"]
[Site "Groningen"]
[Date "2024.12.30"]
[Round "9.26"]
[White "Zecha, Oscar"]
[Black "Wempe, Joost"]
[Result "1-0"]
[ECO "A28"]
[WhiteElo "2134"]
[BlackElo "2233"]
[Annotator "RC"]
[PlyCount "45"]
[EventDate "2024.12.21"]
[EventType "swiss"]
[EventCountry "NED"]
[SourceTitle "playchess.com"]
[Source "ChessBase"]
[SourceQuality "1"]
[TimeControl "40/5400+30:1800+30"]

1. d3 {[%emt 0:00:25]} e5 {[%emt 0:01:15]} 2. c4 {[%emt 0:06:00]} Nf6 {[%emt 0:00:26]} 3. Nf3 {[%emt 0:01:27]} Nc6 {[%emt 0:00:30]} 4. Nc3 {[%emt 0:01:43]} d5 {[%emt 0:06:29]} 5. Bg5 {[%emt 0:03:59]} d4 {[%emt 0:04:59]} 6. Nd5 {[%emt 0:03:01]} Be7 {[%emt 0:11:29]} 7. Nxe7 {[%emt 0:01:05]} Qxe7 {[%emt 0:00:08]} 8. g3 {[%emt 0:01:26]} e4 {[%emt 0:12:15]} 9. Bxf6 {[%emt 0:02:03]} Qxf6 {[%emt 0:01:18]} 10. dxe4 {[%emt 0:00:36]} Qe7 {[%emt 0:04:42]} 11. Nd2 {[%emt 0:01:53]} f5 {[%emt 0:04:24]} 12. exf5 {[%emt 0:12:45]} Bxf5 {[%emt 0:07:04]} 13. Bg2 {[%emt 0:01:37]} O-O {[%emt 0:03:28]} 14. O-O {[%emt 0:01:27]} Rae8 {[%emt 0:00:24]} 15. Nf3 {[%emt 0:02:53]} Qxe2 {[%emt 0:11:11]} 16. Nxd4 {[%emt 0:01:07]} Qxb2 {[%emt 0:04:58]} 17. Nxf5 {[%emt 0:08:32]} Rxf5 {[%emt 0:00:07]} 18. Rb1 {[%emt 0:00:02]} Qxa2 {[%emt 0:02:12]} 19. Rxb7 {[%emt 0:00:04]} Ne5 {[%emt 0:01:15]} 20. Rxc7 {[%emt 0:00:35]} Kh8 {[%emt 0:01:29]} 21. Qd4 {[%emt 0:01:51]} a5 {[%emt 0:08:05]} 22. Re7 {[%emt 0:06:14]} Qa4 {[%emt 0:00:33]} 23. Qa1 {[%emt 0:01:27]} 1-0

[Event "Festival Groningen-A 2024"]
[Site "Groningen"]
[Date "2024.12.30"]
[Round "9.27"]
[White "Duson, Robin"]
[Black "Wouters, Casper"]
[Result "1-0"]
[ECO "E73"]
[WhiteElo "2159"]
[BlackElo "2110"]
[Annotator "RC"]
[PlyCount "93"]
[EventDate "2024.12.21"]
[EventType "swiss"]
[EventCountry "NED"]
[SourceTitle "playchess.com"]
[Source "ChessBase"]
[SourceQuality "1"]
[TimeControl "40/5400+30:1800+30"]

1. d4 {[%emt 0:00:08]} Nf6 {[%emt 0:00:10]} 2. c4 {[%emt 0:00:10]} g6 {[%emt 0:00:12]} 3. Nc3 {[%emt 0:00:13]} Bg7 {[%emt 0:00:13]} 4. e4 {[%emt 0:00:18]} d6 {[%emt 0:00:12]} 5. Be2 {[%emt 0:00:19]} O-O {[%emt 0:00:17]} 6. Be3 {[%emt 0:00:29]} e5 {[%emt 0:00:25]} 7. d5 {[%emt 0:00:16]} Na6 {[%emt 0:00:29]} 8. g4 {[%emt 0:00:47]} Nc5 {[%emt 0:00:33]} 9. f3 {[%emt 0:00:22]} h5 {[%emt 0:03:26]} 10. h4 {[%emt 0:00:58]} c6 {[%emt 0:14:41]} 11. g5 {[%emt 0:03:40]} Nh7 {[%emt 0:00:52]} 12. Qd2 {[%emt 0:03:34]} cxd5 {[%emt 0:13:40]} 13. cxd5 {[%emt 0:01:57]} f6 {[%emt 0:01:19]} 14. gxf6 {[%emt 0:02:02]} Bxf6 {[%emt 0:00:15]} 15. O-O-O {[%emt 0:02:07]} Bxh4 {[%emt 0:05:11]} 16. Nh3 {[%emt 0:01:00]} Bxh3 {[%emt 0:05:35]} 17. Rxh3 {[%emt 0:00:07]} Rf4 {[%emt 0:09:54]} 18. Rg1 {[%emt 0:10:16]} Bg5 {[%emt 0:10:23]} 19. Kb1 {[%emt 0:05:04]} Qf6 {[%emt 0:02:27]} 20. Bc4 {[%emt 0:03:50]} Rc8 {[%emt 0:04:44]} 21. Qg2 {[%emt 0:25:59]} Kh8 {[%emt 0:05:28]} 22. Rg3 {[%emt 0:04:14]} Nd7 {[%emt 0:03:59]} 23. Be2 {[%emt 0:03:05]} Ndf8 {[%emt 0:01:34]} 24. Rxg5 {[%emt 0:01:03]} Qxg5 {[%emt 0:01:22]} 25. Qxg5 {[%emt 0:02:05]} Nxg5 {[%emt 0:00:18]} 26. Rxg5 {[%emt 0:01:52]} Rh4 {[%emt 0:01:18]} 27. Kc2 {[%emt 0:01:08]} a6 {[%emt 0:02:19]} 28. Kd2 {[%emt 0:01:41]} Kg7 {[%emt 0:01:57]} 29. Rg1 {[%emt 0:03:11]} Kf7 {[%emt 0:01:10]} 30. Bg5 {[%emt 0:02:00]} Rh2 {[%emt 0:00:28]} 31. f4 {[%emt 0:00:51]} Nd7 {[%emt 0:00:54]} 32. Rf1 {[%emt 0:01:41]} Ke8 {[%emt 0:00:57]} 33. f5 {[%emt 0:01:03]} gxf5 {[%emt 0:01:09]} 34. exf5 {[%emt 0:01:15]} Rc4 {[%emt 0:00:40]} 35. Ke3 {[%emt 0:02:32]} Rd4 {[%emt 0:00:53]} 36. Bf3 {[%emt 0:17:13]} Nb6 {[%emt 0:01:38]} 37. b3 {[%emt 0:00:00]} Rh3 {[%emt 0:00:54]} 38. Ke2 {[%emt 0:00:00]} Nc8 {[%emt 0:03:02]} 39. f6 {[%emt 0:00:00]} Kf7 {[%emt 0:01:23]} 40. Ne4 {[%emt 0:00:00]} Rh2+ {[%emt 0:03:23]} 41. Rf2 {[%emt 0:24:45]} Rh3 {[%emt 0:06:42]} 42. Be3 {[%emt 0:00:00]} Rh4 {[%emt 0:02:57]} 43. Bxd4 {[%emt 0:00:00]} exd4 {[%emt 0:00:19]} 44. Kd3 {[%emt 0:00:00]} Nb6 {[%emt 0:01:03]} 45. Bg2 {[%emt 0:00:00]} Nd7 {[%emt 0:00:48]} 46. Nxd6+ {[%emt 0:00:00]} Kf8 {[%emt 0:00:24]} 47. Be4 {[%emt 0:00:00]} 1-0

[Event "Festival Groningen-A 2024"]
[Site "Groningen"]
[Date "2024.12.30"]
[Round "9.28"]
[White "Ponnio, Toni"]
[Black "Schilstra, Laurens"]
[Result "0-1"]
[ECO "A53"]
[WhiteElo "2111"]
[BlackElo "2150"]
[Annotator "RC"]
[PlyCount "80"]
[EventDate "2024.12.21"]
[EventType "swiss"]
[EventCountry "NED"]
[SourceTitle "playchess.com"]
[Source "ChessBase"]
[SourceQuality "1"]
[TimeControl "40/5400+30:1800+30"]

1. d4 {[%emt 0:00:04]} d6 {[%emt 0:00:08]} 2. e4 {[%emt 0:01:00]} Nf6 {[%emt 0:00:04]} 3. f3 {[%emt 0:00:34]} Nbd7 {[%emt 0:00:17]} 4. Ne2 {[%emt 0:01:38]} e5 {[%emt 0:01:40]} 5. c4 {[%emt 0:00:22]} Be7 {[%emt 0:00:29]} 6. Nbc3 {[%emt 0:01:25]} O-O {[%emt 0:00:37]} 7. Be3 {[%emt 0:00:38]} c6 {[%emt 0:00:43]} 8. Qd2 {[%emt 0:04:03]} Re8 {[%emt 0:00:43]} 9. d5 {[%emt 0:03:14]} h5 {[%emt 0:05:41]} 10. g3 {[%emt 0:17:47]} c5 {[%emt 0:02:10]} 11. h4 {[%emt 0:05:39]} Nh7 {[%emt 0:00:23]} 12. O-O-O {[%emt 0:03:19]} a6 {[%emt 0:01:02]} 13. g4 {[%emt 0:20:44]} b5 {[%emt 0:01:43]} 14. Ng3 {[%emt 0:00:22]} hxg4 {[%emt 0:12:31]} 15. Nf5 {[%emt 0:06:28]} Ndf6 {[%emt 0:02:39]} 16. cxb5 {[%emt 0:10:43]} Bxf5 {[%emt 0:01:18]} 17. exf5 {[%emt 0:00:09]} gxf3 {[%emt 0:00:24]} 18. Rg1 {[%emt 0:04:06]} Kh8 {[%emt 0:00:04]} 19. bxa6 {[%emt 0:00:38]} Bf8 {[%emt 0:01:38]} 20. Bb5 {[%emt 0:00:59]} Re7 {[%emt 0:02:02]} 21. h5 {[%emt 0:03:34]} Qc8 {[%emt 0:01:54]} 22. h6 {[%emt 0:05:42]} Qxf5 {[%emt 0:01:46]} 23. Bc6 {[%emt 0:00:26]} Rxa6 {[%emt 0:00:30]} 24. hxg7+ {[%emt 0:00:54]} Bxg7 {[%emt 0:00:05]} 25. Qh2 {[%emt 0:06:14]} Rea7 {[%emt 0:06:01]} 26. Rg5 {[%emt 0:00:52]} Ng4 {[%emt 0:15:46]} 27. Qh3 {[%emt 0:01:10]} Qc8 {[%emt 0:00:02]} 28. Rh1 {[%emt 0:00:54]} Bh6 {[%emt 0:01:03]} 29. Rxg4 {[%emt 0:00:44]} Bxe3+ {[%emt 0:00:09]} 30. Kd1 {[%emt 0:00:20]} f5 {[%emt 0:00:07]} 31. Rh4 {[%emt 0:00:35]} Qg8 {[%emt 0:00:28]} 32. Qxf5 {[%emt 0:00:22]} Bg5 {[%emt 0:01:44]} 33. Rxh7+ {[%emt 0:00:39]} Rxh7 {[%emt 0:00:03]} 34. Rxh7+ {[%emt 0:00:12]} Qxh7 {[%emt 0:00:04]} 35. Qc8+ {[%emt 0:00:12]} Kg7 {[%emt 0:01:33]} 36. Qxa6 {[%emt 0:00:06]} Qh2 {[%emt 0:00:36]} 37. Qd3 {[%emt 0:01:25]} f2 {[%emt 0:01:53]} 38. Qf1 {[%emt 0:00:30]} Qf4 {[%emt 0:00:53]} 39. Kc2 {[%emt 0:00:41]} c4 {[%emt 0:00:03]} 40. Bb5 {[%emt 0:00:33]} Qd2+ {[%emt 0:00:20]} 0-1

[Event "Festival Groningen-A 2024"]
[Site "Groningen"]
[Date "2024.12.30"]
[Round "9.29"]
[White "Van Helvoort, Rob"]
[Black "Hummel, Paul"]
[Result "1-0"]
[ECO "D41"]
[WhiteElo "2135"]
[BlackElo "2160"]
[Annotator "RC"]
[PlyCount "123"]
[EventDate "2024.12.21"]
[EventType "swiss"]
[EventCountry "NED"]
[SourceTitle "playchess.com"]
[Source "ChessBase"]
[SourceQuality "1"]
[TimeControl "40/5400+30:1800+30"]

1. e4 {[%emt 0:00:02]} c6 {[%emt 0:00:04]} 2. c4 {[%emt 0:00:13]} d5 {[%emt 0:00:10]} 3. cxd5 {[%emt 0:00:08]} cxd5 {[%emt 0:00:06]} 4. exd5 {[%emt 0:00:05]} Nf6 {[%emt 0:00:05]} 5. Bc4 {[%emt 0:00:33]} Nxd5 {[%emt 0:02:37]} 6. Nf3 {[%emt 0:00:27]} Nc6 {[%emt 0:01:09]} 7. O-O {[%emt 0:00:49]} e6 {[%emt 0:03:38]} 8. d4 {[%emt 0:01:37]} Be7 {[%emt 0:00:07]} 9. Nc3 {[%emt 0:00:23]} O-O {[%emt 0:00:27]} 10. Re1 {[%emt 0:00:49]} Bf6 {[%emt 0:00:34]} 11. Bb3 {[%emt 0:02:35]} Nxc3 {[%emt 0:13:15]} 12. bxc3 {[%emt 0:00:06]} b5 {[%emt 0:00:21]} 13. Qd3 {[%emt 0:01:18]} b4 {[%emt 0:03:38]} 14. Bb2 {[%emt 0:09:22]} bxc3 {[%emt 0:06:04]} 15. Bxc3 {[%emt 0:03:31]} Bb7 {[%emt 0:01:28]} 16. Rad1 {[%emt 0:06:22]} Ne7 {[%emt 0:03:59]} 17. Bb4 {[%emt 0:01:10]} Re8 {[%emt 0:03:07]} 18. Ba4 {[%emt 0:06:26]} Nd5 {[%emt 0:05:37]} 19. Bc5 {[%emt 0:06:07]} Qa5 {[%emt 0:01:33]} 20. Bxe8 {[%emt 0:02:29]} Rxe8 {[%emt 0:00:07]} 21. Qd2 {[%emt 0:01:07]} Qa4 {[%emt 0:03:17]} 22. Rb1 {[%emt 0:04:46]} Bc6 {[%emt 0:00:42]} 23. Rb3 {[%emt 0:02:31]} h6 {[%emt 0:02:31]} 24. Reb1 {[%emt 0:05:20]} g5 {[%emt 0:06:24]} 25. Ra3 {[%emt 0:11:10]} Qc4 {[%emt 0:00:12]} 26. Qd3 {[%emt 0:00:36]} Qxd3 {[%emt 0:02:13]} 27. Rxd3 {[%emt 0:00:06]} Nf4 {[%emt 0:00:13]} 28. Rdb3 {[%emt 0:00:24]} g4 {[%emt 0:02:27]} 29. Ne1 {[%emt 0:00:36]} a6 {[%emt 0:03:17]} 30. Rb8 {[%emt 0:05:16]} Rxb8 {[%emt 0:00:06]} 31. Rxb8+ {[%emt 0:00:06]} Kg7 {[%emt 0:00:03]} 32. f3 {[%emt 0:03:44]} Bd5 {[%emt 0:05:40]} 33. fxg4 {[%emt 0:06:35]} Bxa2 {[%emt 0:01:54]} 34. Nf3 {[%emt 0:02:35]} Bd5 {[%emt 0:01:12]} 35. Kf2 {[%emt 0:01:26]} a5 {[%emt 0:01:08]} 36. Bd6 {[%emt 0:04:54]} Ng6 {[%emt 0:04:28]} 37. Ne5 {[%emt 0:01:35]} a4 {[%emt 0:00:18]} 38. Rb5 {[%emt 0:05:09]} Bd8 {[%emt 0:03:22]} 39. Nxg6 {[%emt 0:01:08]} Kxg6 {[%emt 0:00:11]} 40. g3 {[%emt 0:02:49]} Bg5 {[%emt 0:00:18]} 41. Ra5 {[%emt 0:30:53]} Bb3 {[%emt 0:30:01]} 42. h4 {[%emt 0:03:24]} Bc1 {[%emt 0:00:05]} 43. h5+ {[%emt 0:00:00]} Kf6 {[%emt 0:00:00]} 44. Be5+ {[%emt 0:00:00]} Ke7 {[%emt 0:00:00]} 45. Ra7+ {[%emt 0:00:00]} Kd8 {[%emt 0:00:00]} 46. Bf6+ {[%emt 0:00:00]} Kc8 {[%emt 0:00:00]} 47. Be7 {[%emt 0:00:00]} Kb8 {[%emt 0:00:00]} 48. Ra5 {[%emt 0:00:00]} Bd2 {[%emt 0:00:00]} 49. Rb5+ {[%emt 0:00:00]} Kc7 {[%emt 0:00:00]} 50. g5 {[%emt 0:00:00]} Kd7 {[%emt 0:00:00]} 51. gxh6 {[%emt 0:00:00]} Bxh6 {[%emt 0:00:00]} 52. Ba3 {[%emt 0:00:00]} Kc6 {[%emt 0:00:00]} 53. Rc5+ {[%emt 0:00:00]} Kb6 {[%emt 0:00:00]} 54. Rc8 {[%emt 0:00:00]} Bd1 {[%emt 0:00:00]} 55. Rg8 {[%emt 0:00:00]} Kb5 {[%emt 0:00:00]} 56. g4 {[%emt 0:00:00]} f6 {[%emt 0:00:00]} 57. Rh8 {[%emt 0:00:00]} Bg5 {[%emt 0:00:00]} 58. h6 {[%emt 0:00:00]} f5 {[%emt 0:00:00]} 59. h7 {[%emt 0:02:43]} Bf6 {[%emt 0:00:00]} 60. Rb8+ {[%emt 0:00:56]} Kc4 {[%emt 0:00:00]} 61. g5 {[%emt 0:01:54]} Bxd4+ {[%emt 0:00:00]} 62. Ke1 {[%emt 0:00:09]} 1-0